[Event "Serbian League 2024"]
[Site "Bajina Basta"]
[Date "2024.10.02"]
[Round "6.11"]
[White "Marcetic, Nikola"]
[Black "Gagic, Milan A"]
[Result "1/2-1/2"]
[ECO "D02"]
[WhiteElo "2290"]
[BlackElo "2284"]
[Annotator "RC"]
[PlyCount "107"]
[EventDate "2024.09.26"]
[EventType "team-tourn"]
[EventCountry "SRB"]
[SourceTitle "playchess.com"]
[Source "ChessBase"]
[SourceQuality "1"]
[TimeControl "40/5400+30:1800+30"]

1. d4 {[%emt 0:00:02]} d5 {[%emt 0:00:09]} 2. Nf3 {[%emt 0:00:10]} Nf6 {[%emt 0:00:10]} 3. Bf4 {[%emt 0:00:12]} c5 {[%emt 0:00:38]} 4. e3 {[%emt 0:00:08]} Nc6 {[%emt 0:00:13]} 5. Nbd2 {[%emt 0:00:49]} e6 {[%emt 0:00:16]} 6. c3 {[%emt 0:01:56]} Nh5 {[%emt 0:00:45]} 7. Be5 {[%emt 0:01:58]} f6 {[%emt 0:03:08]} 8. Bg3 {[%emt 0:04:07]} g6 {[%emt 0:04:00]} 9. Be2 {[%emt 0:05:08]} cxd4 {[%emt 0:04:43]} 10. exd4 {[%emt 0:10:59]} Bd6 {[%emt 0:02:56]} 11. Bxd6 {[%emt 0:07:29]} Qxd6 {[%emt 0:00:12]} 12. g3 {[%emt 0:00:17]} O-O {[%emt 0:04:16]} 13. O-O {[%emt 0:12:48]} Bd7 {[%emt 0:08:36]} 14. c4 {[%emt 0:08:10]} f5 {[%emt 0:14:31]} 15. Nb3 {[%emt 0:14:54]} Nf6 {[%emt 0:08:01]} 16. c5 {[%emt 0:01:50]} Qc7 {[%emt 0:01:56]} 17. Bb5 {[%emt 0:00:38]} Nb8 {[%emt 0:10:16]} 18. Bd3 {[%emt 0:01:57]} Ne4 {[%emt 0:02:33]} 19. Ne5 {[%emt 0:02:06]} Nc6 {[%emt 0:05:45]} 20. Nxc6 {[%emt 0:03:04]} bxc6 {[%emt 0:01:10]} 21. f3 {[%emt 0:00:15]} Nxg3 {[%emt 0:01:10]} 22. hxg3 {[%emt 0:02:11]} Qxg3+ {[%emt 0:01:18]} 23. Kh1 {[%emt 0:00:03]} Qh3+ {[%emt 0:07:02]} 24. Kg1 {[%emt 0:00:08]} Qg3+ {[%emt 0:00:45]} 25. Kh1 {[%emt 0:00:05]} g5 {[%emt 0:03:53]} 26. Qd2 {[%emt 0:09:46]} a5 {[%emt 0:02:06]} 27. Qh2 {[%emt 0:01:26]} Qxh2+ {[%emt 0:00:08]} 28. Kxh2 {[%emt 0:00:01]} Rfb8 {[%emt 0:01:56]} 29. Nc1 {[%emt 0:07:52]} Rxb2+ {[%emt 0:00:16]} 30. Ne2 {[%emt 0:00:01]} Rab8 {[%emt 0:03:06]} 31. Rab1 {[%emt 0:01:24]} Kf7 {[%emt 0:00:43]} 32. f4 {[%emt 0:01:09]} gxf4 {[%emt 0:01:02]} 33. Kg2 {[%emt 0:00:39]} Kf6 {[%emt 0:03:53]} 34. Kf3 {[%emt 0:00:43]} e5 {[%emt 0:00:38]} 35. dxe5+ {[%emt 0:00:06]} Kxe5 {[%emt 0:00:05]} 36. Nxf4 {[%emt 0:02:08]} Kd4 {[%emt 0:06:15]} 37. Rbc1 Rxa2 {[%emt 0:00:00]} 38. Rfe1 {[%emt 0:01:38]} Rbb2 {[%emt 0:00:09]} 39. Be2 {[%emt 0:01:06]} Ra3+ {[%emt 0:00:37]} 40. Bd3 {[%emt 0:00:08]} Rxd3+ {[%emt 0:00:35]} 41. Nxd3 {[%emt 0:30:28]} Rb3 {[%emt 0:01:41]} 42. Kf4 {[%emt 0:00:00]} Rxd3 {[%emt 0:03:58]} 43. Re7 {[%emt 0:02:01]} Bc8 {[%emt 0:01:02]} 44. Rc7 {[%emt 0:00:00]} Ba6 {[%emt 0:01:42]} 45. Rxc6 {[%emt 0:00:00]} Bc4 {[%emt 0:24:46]} 46. Rc7 a4 47. Rh1 a3 48. Kxf5 a2 49. Rh4+ Kc3 {[%emt 0:00:00]} 50. Rh1 Kb4 {[%emt 0:00:00]} 51. Ke5 Ra3 {[%emt 0:00:00]} 52. Ra1 Kc3 {[%emt 0:00:00]} 53. Rxh7 Kb2 {[%emt 0:00:00]} 54. Rhh1 1/2-1/2

[Event "Serbian League 2024"]
[Site "Bajina Basta"]
[Date "2024.10.02"]
[Round "6.12"]
[White "Pajcin, Lav"]
[Black "Pavlovic, Dejan S"]
[Result "1/2-1/2"]
[ECO "D12"]
[WhiteElo "2242"]
[BlackElo "2350"]
[Annotator "TA"]
[PlyCount "64"]
[EventDate "2024.09.26"]
[EventType "team-tourn"]
[EventCountry "SRB"]
[SourceTitle "playchess.com"]
[Source "ChessBase"]
[SourceQuality "1"]
[TimeControl "40/5400+30:1800+30"]

{[%evp 11,64,27,21,17,22,17,57,20,27,25,41,0,10,0,0,0,0,0,0,-6,0,0,0,0,0,0,9,21,47,0,0,0,6,-5,-14,0,0,0,36,11,40,29,21,18,43,29,43,0,0,-77,-56,-106,41,37,48]} 1. d4 {[%emt 0:00:06]} d5 {[%emt 0:00:34]} 2. c4 {[%emt 0:00:12]} c6 {[%emt 0:00:06]} 3. Nf3 {[%emt 0:00:10]} Nf6 {[%emt 0:00:25]} 4. e3 {[%emt 0:00:21]} Bf5 {[%emt 0:01:13]} 5. Nc3 {[%emt 0:00:16]} e6 {[%emt 0:00:11]} 6. Nh4 {[%emt 0:00:11]} Bg6 {[%emt 0:01:49]} 7. Be2 {[%emt 0:00:39]} Be7 {[%emt 0:02:02]} 8. O-O {[%emt 0:00:41]} O-O {[%emt 0:02:30][%cal Og6h5]} 9. Qb3 {[%emt 0:05:53]} Qc7 {[%emt 0:06:14]} 10. Nxg6 {[%emt 0:00:48]} hxg6 {[%emt 0:00:07]} 11. Bf3 {[%emt 0:05:23]} Nbd7 {[%emt 0:03:27]} 12. Bd2 {[%emt 0:02:03]} Nb6 {[%emt 0:21:58]} 13. cxd5 {[%emt 0:00:45]} exd5 {[%emt 0:56:24]} 14. Rad1 Rfe8 15. g3 Nc4 (15... g5 {feels hotter.} 16. e4 Nxe4 17. Nxe4 dxe4 18. Bxe4 Rad8) 16. Bc1 Nd6 17. Bg2 Rad8 18. Qc2 {[%cal Oc3d5]} Qd7 19. f3 Nf5 20. Qf2 (20. Ne2 $1 $14) 20... Bb4 $11 21. g4 Nd6 22. a3 Bxc3 23. bxc3 Qe7 24. Rfe1 Nc4 25. Qh4 Nh7 26. Qxe7 Rxe7 27. e4 Rde8 28. Bf1 b5 29. Bd3 dxe4 30. fxe4 (30. Rxe4 $11 Nf6 31. Rxe7 Rxe7 32. Bxc4 bxc4 33. Bg5) 30... Nf6 $17 {[%csl LRe4,LRg4][%cal Rf6e4]} 31. Bg5 (31. e5 $15) 31... Nxa3 {A dynamic duo of knights.} (31... Nb2 $17 {[%cal Ob2d3] And now ...Nxd3! would win.} 32. e5 (32. Bxf6 $2 gxf6 33. Rd2 Nxd3 $19) 32... Re6 (32... Nxd1 33. Rxd1 Nxg4 34. Bxe7 $11)) 32. e5 $14 {[#] Ra1 would now be deadly.} Re6 $1 {[%emt 0:00:00] Weighted Error Value: White=0.16 (very precise) /Black=0.13 (very precise) .  Mistake:       	White=3     	Black=1      Inaccurate:     	White=3     	Black=4      OK:         	White=12    	Black=11     Best:        	---       	Black=2      Strong:       	---       	Black=1} 1/2-1/2

[Event "Serbian League 2024"]
[Site "Bajina Basta"]
[Date "2024.10.02"]
[Round "6.13"]
[White "Krstulovic, Alex"]
[Black "Visakh N R"]
[Result "1/2-1/2"]
[ECO "D02"]
[WhiteElo "2452"]
[BlackElo "2504"]
[Annotator "TA"]
[PlyCount "36"]
[EventDate "2024.09.26"]
[EventType "team-tourn"]
[EventCountry "SRB"]
[SourceTitle "playchess.com"]
[Source "ChessBase"]
[SourceQuality "1"]
[TimeControl "40/5400+30:1800+30"]

{[%evp 9,36,0,16,19,19,7,10,17,24,12,8,0,16,8,9,0,8,0,0,2,0,0,0,0,0,0,0,0,20]} 1. d4 {[%emt 0:00:04]} Nf6 {[%emt 0:00:06]} 2. Nf3 {[%emt 0:00:04]} d5 {[%emt 0:00:23]} 3. Bf4 {[%emt 0:00:06]} c5 {[%emt 0:01:11]} 4. e3 {[%emt 0:00:08]} Nc6 {[%emt 0:00:23]} 5. Nbd2 {[%emt 0:00:58]} cxd4 {[%emt 0:00:08]} 6. exd4 {[%emt 0:00:19]} a6 {[%emt 0:00:06]} 7. Be2 {[%emt 0:01:59]} Bf5 {[%emt 0:01:18]} 8. c3 {[%emt 0:01:58] Repels Nb4} e6 {[%emt 0:02:56]} 9. O-O {[%emt 0:06:52]} h6 {[%emt 0:01:22] The position is equal.} 10. Re1 {[%emt 0:02:10]} Bd6 {[%emt 0:11:23]} 11. Bxd6 {[%emt 0:04:15]} Qxd6 {[%emt 0:00:02]} 12. Nf1 {[%emt 0:00:26]} Ne4 {[%emt 0:08:20]} 13. Ng3 {[%emt 0:08:42]} Nxg3 {[%emt 0:14:33]} 14. hxg3 {[%emt 0:00:18]} O-O {[%emt 0:00:04]} 15. Bd3 {[%emt 0:04:35]} Bxd3 {[%emt 0:04:49]} 16. Qxd3 {[%emt 0:00:23]} Rfe8 {[%emt 0:00:02]} 17. Ne5 {[%emt 0:05:19]} Nxe5 {[%emt 0:05:59]} 18. Rxe5 {[%emt 0:00:34]} f6 {[%emt 0:04:53] Not much happened in this game.   Weighted Error Value: White=0.05 (flawless) /Black=0.04 (flawless) .  OK:         	White=3     	Black=5} 1/2-1/2

[Event "Serbian League 2024"]
[Site "Bajina Basta"]
[Date "2024.10.02"]
[Round "6.14"]
[White "Vignesh N R"]
[Black "Popovic, Dusan"]
[Result "1-0"]
[ECO "B08"]
[WhiteElo "2511"]
[BlackElo "2494"]
[Annotator "TA"]
[PlyCount "81"]
[EventDate "2024.09.26"]
[EventType "team-tourn"]
[EventCountry "SRB"]
[SourceTitle "playchess.com"]
[Source "ChessBase"]
[SourceQuality "1"]
[TimeControl "40/5400+30:1800+30"]

{[%evp 9,81,32,41,45,63,60,58,11,19,4,3,5,3,12,3,-2,0,0,7,10,20,27,20,31,29,29,22,21,31,25,27,38,24,27,33,18,56,50,75,75,70,79,81,79,75,72,72,56,130,90,89,87,154,172,178,183,168,109,261,262,264,273,298,264,304,289,775,757,785,779,781,785,809,625]} 1. e4 {[%emt 0:00:43]} d6 {[%emt 0:00:06]} 2. d4 {[%emt 0:00:16]} Nf6 {[%emt 0:00:06]} 3. Nc3 {[%emt 0:00:06]} g6 {[%emt 0:00:03]} 4. Nf3 {[%emt 0:03:23]} a6 {[%emt 0:01:34]} 5. Bc4 {[%emt 0:09:06][%cal Bf1c4,Bc4b3,Bb3d5][%mdl 32]} Bg7 {[%emt 0:02:35]} 6. Qe2 {[%emt 0:00:42] Threatens to win with e5.} b5 {[%emt 0:18:33][%cal Bb7b5,Bb5b4][%mdl 32]} 7. Bb3 {[%emt 0:01:06] [#] Strongly threatening e5.} b4 {[%emt 0:05:54]} 8. Nd5 {[%emt 0:03:50]} (8. Na4 $14) 8... Nxd5 $11 {[%emt 0:12:47]} 9. Bxd5 {[%emt 0:00:10]} c6 {[%emt 0:00:15]} 10. Bb3 {[%emt 0:00:11]} O-O {[%emt 0:05:40]} 11. O-O {[%emt 0:04:18]} a5 {[%emt 0:06:21]} 12. a3 {[%emt 0:03:59]} Ba6 {[%emt 0:16:54]} 13. Bc4 {[%emt 0:00:09]} Bxc4 {[%emt 0:00:04]} 14. Qxc4 {[%emt 0:00:05]} d5 {[%emt 0:00:10]} 15. exd5 {[%emt 0:08:24]} cxd5 {[%emt 0:00:12]} 16. Qb5 {[%emt 0:00:05]} Qd7 {[%emt 0:09:25]} 17. Qxd7 {[%emt 0:00:14]} Nxd7 {[%emt 0:00:04]} 18. axb4 {[%emt 0:00:06]} axb4 {[%emt 0:00:29]} 19. Bd2 {[%emt 0:00:05]} Rab8 {[%emt 0:03:08]} 20. Ra7 {[%emt 0:03:04]} Rfd8 {[%emt 0:03:14]} 21. Bf4 {[%emt 0:03:26][%cal Bd2f4,Bf4c7,Bc7a5,Ba5b4,Bb4c5][%mdl 32]} Rbc8 {[%emt 0:02:01]} 22. Rc1 {[%emt 0:06:50]} h6 {[%emt 0:06:21]} 23. h4 {[%emt 0:02:11]} f6 {[%emt 0:00:10]} 24. Bc7 {[%emt 0:02:23] White is more active.} Re8 {[%emt 0:01:20]} 25. Ba5 {[%emt 0:01:00][%csl LRb4,LRd7]} Nb8 {[%emt 0:00:57]} 26. Bxb4 {[%emt 0:00:44]} Nc6 {[%emt 0:00:59][%csl LRa7,LRb4]} 27. Ra4 {[%emt 0:04:18]} e5 {[%emt 0:03:13]} 28. Bc5 {[%emt 0:00:29]} Nd8 {[%emt 0:01:06]} ({Black should play} 28... Nxd4 $1 $14 29. Bxd4 exd4) 29. c4 {[%emt 0:03:52]} exd4 {[%emt 0:00:40]} 30. Bxd4 {[%emt 0:00:52]} Re4 {[%emt 0:00:12] [#]} (30... Rxc4 $142 31. Rcxc4 (31. Raxc4 dxc4 32. Rxc4 Ne6 $16) 31... dxc4 32. Rxc4 Ne6) 31. Rca1 $1 $16 {[%emt 0:09:23] Ra8 is the strong threat.} Ne6 {[%emt 0:00:54]} 32. cxd5 {[%emt 0:00:35]} Nxd4 {[%emt 0:00:08]} 33. Nxd4 {[%emt 0:01:44]} (33. Rxd4 $18 Re7 34. h5 gxh5 35. Rad1) 33... Bf8 $2 {[%emt 0:00:46] Black cannot hold the game after this.} (33... f5 $16 {was worth a try.} 34. Nc6 Bxb2) 34. Nc6 $18 {[%emt 0:01:25]} Re2 {[%emt 0:00:11]} 35. b4 {[%emt 0:01:22]} Rd2 {[%emt 0:00:18]} 36. Ra8 {[%emt 0:00:52]} Rxa8 {[%emt 0:00:15]} 37. Rxa8 {[%emt 0:00:05] Hoping for b5.} Kf7 $2 {[%emt 0:00:07]} (37... Kg7 38. Rd8 Rd1+ 39. Kh2 h5) 38. Nd8+ {[%emt 0:01:19] White is clearly winning.} Ke7 {[%emt 0:00:11]} 39. Ne6 {[%emt 0:00:08]} Rxd5 {[%emt 0:00:24]} 40. Nxf8 {[%emt 0:00:06]} Kf7 {[%emt 0:00:17]} 41. Rb8 {[%emt 0:30:13] Weighted Error Value: White=0.06 (flawless) /Black=0.17 (very precise) .  Mistake:       	White=2     	Black=4      Inaccurate:     	White=1     	Black=1      OK:         	White=16    	Black=16     Best:        	White=3     	Black=1} 1-0

[Event "Serbian League 2024"]
[Site "Bajina Basta"]
[Date "2024.10.02"]
[Round "6.15"]
[White "Sedlak, Nikola"]
[Black "Milanovic, Danilo"]
[Result "1-0"]
[ECO "A15"]
[WhiteElo "2401"]
[BlackElo "2442"]
[Annotator "TA"]
[PlyCount "81"]
[EventDate "2024.09.26"]
[EventType "team-tourn"]
[EventCountry "SRB"]
[SourceTitle "playchess.com"]
[Source "ChessBase"]
[SourceQuality "1"]
[TimeControl "40/5400+30:1800+30"]

{[%evp 9,81,33,20,36,39,25,29,12,31,16,18,0,31,16,19,0,18,12,69,59,56,55,50,45,81,36,63,38,52,43,48,54,50,31,69,24,36,13,19,18,202,206,247,238,253,221,306,296,309,304,300,317,337,347,370,345,400,375,398,396,391,419,391,407,425,425,411,422,466,464,438,404,435,432]} 1. Nf3 {[%emt 0:03:11]} Nf6 {[%emt 0:02:00]} 2. c4 {[%emt 0:00:16]} d6 {[%emt 0:09:19]} 3. g3 {[%emt 0:01:43]} Bf5 {[%emt 0:08:13]} 4. Bg2 {[%emt 0:00:42]} Qc8 {[%emt 0:00:24]} 5. h3 {[%emt 0:02:07]} g6 {[%emt 0:02:44]} 6. Nc3 {[%emt 0:00:21]} Bg7 {[%emt 0:01:05]} 7. d4 {[%emt 0:07:27]} Ne4 {[%emt 0:11:47]} 8. Nd5 {[%emt 0:09:41] White has an edge.} c6 {[%emt 0:00:34]} 9. Ne3 {[%emt 0:00:18]} Bd7 {[%emt 0:00:04]} 10. Qd3 {[%emt 0:05:47]} Nf6 {[%emt 0:06:31]} 11. Bd2 {[%emt 0:01:11][%cal Bc1d2,Bd2c3,Bc3d4][%mdl 32]} O-O {[%emt 0:07:47]} 12. h4 {[%emt 0:03:27]} c5 {[%emt 0:14:30]} 13. dxc5 {[%emt 0:00:15]} Qxc5 {[%emt 0:01:10] [#]} ({Black should try} 13... dxc5 $11 14. Bc3 Nc6) 14. h5 $1 $14 {[%emt 0:03:19]} Nc6 {[%emt 0:06:59]} (14... a5 15. h6) 15. hxg6 {[%emt 0:01:31]} hxg6 {[%emt 0:00:31]} 16. Bc3 {[%emt 0:00:26]} a5 {[%emt 0:09:24]} 17. Rc1 {[%emt 0:05:47]} Bf5 {[%emt 0:06:26]} 18. Nxf5 {[%emt 0:00:50]} (18. Qd1 {seems wilder.} Ne4 19. Bxg7 Kxg7 20. Nh4) 18... Qxf5 {[%emt 0:00:04]} 19. Qxf5 {[%emt 0:01:43]} gxf5 {[%emt 0:00:02]} 20. Nd4 {[%emt 0:02:06]} Nxd4 {[%emt 0:04:21]} 21. Bxd4 {[%emt 0:00:10][%cal Oh1h4]} Ng4 {[%emt 0:01:20]} 22. e3 {[%emt 0:02:04] White is more active.} Rac8 {[%emt 0:00:33]} 23. Ke2 {[%emt 0:00:33]} ({But not} 23. Bxb7 Rb8 24. Bf3 (24. Bxg7 $2 Kxg7 25. Ba6 Rxb2 $19) 24... Bxd4 25. exd4 Rxb2 $11) 23... Bxd4 {[%emt 0:01:44]} 24. exd4 {[%emt 0:00:05][%cal Oh1h5]} b6 $2 {[%emt 0:00:26] [#] A mistake that costs the game.} (24... Kg7 $11 {and Black has nothing to worry.}) 25. Rh5 $1 $18 {[%emt 0:00:42] Strongly threatening Rg5+.} Rfd8 {[%emt 0:04:30]} 26. Rxf5 {[%emt 0:01:02]} Kf8 {[%emt 0:00:29]} 27. Bh3 {[%emt 0:03:30]} Nf6 {[%emt 0:00:07] [#]} 28. Rxf6 $1 {[%emt 0:00:34][%mdl 512]} exf6 {[%emt 0:00:01]} 29. Bxc8 {[%emt 0:00:16]} Rxc8 {[%emt 0:00:01][%mdl 4096] Endgame. KR-KR} 30. Kd3 {[%emt 0:00:33]} Ke7 {[%emt 0:00:22]} 31. Rh1 {[%emt 0:05:11]} f5 {[%emt 0:01:57]} 32. a4 {[%emt 0:02:01]} Rg8 {[%emt 0:00:33]} 33. Rh5 {[%emt 0:06:11]} Ke6 {[%emt 0:00:29]} 34. b3 {[%emt 0:01:10]} Kf6 {[%emt 0:00:29]} 35. Rh6+ {[%emt 0:01:51]} Ke7 {[%emt 0:00:01]} 36. Ke3 {[%emt 0:00:31]} Rg4 {[%emt 0:00:59]} 37. Rh8 {[%emt 0:01:21]} Re4+ {[%emt 0:00:04]} 38. Kd3 {[%emt 0:00:12]} Kd7 {[%emt 0:00:05]} 39. Rf8 {[%emt 0:01:47]} Re7 {[%emt 0:00:15]} 40. Ra8 {[%emt 0:00:40] Ra7+ is the strong threat.} Kc6 {[%emt 0:00:59]} 41. d5+ {[%emt 0:34:04] Weighted Error Value: White=0.09 (flawless) /Black=0.27 (precise) .  Loses game:     	---       	Black=1      Mistake:       	---       	Black=1      Inaccurate:     	White=2     	Black=5      OK:         	White=16    	Black=11     Best:        	White=2     	Black=1      Strong:       	White=1     	---        Brilliant:      	White=1     	---} 1-0

[Event "Serbian League 2024"]
[Site "Bajina Basta"]
[Date "2024.10.02"]
[Round "6.16"]
[White "Spasic, Petar"]
[Black "Stojanovic, Dalibor"]
[Result "1-0"]
[ECO "D00"]
[WhiteElo "2304"]
[BlackElo "2448"]
[Annotator "TA"]
[PlyCount "87"]
[EventDate "2024.09.26"]
[EventType "team-tourn"]
[EventCountry "SRB"]
[SourceTitle "playchess.com"]
[Source "ChessBase"]
[SourceQuality "1"]
[TimeControl "40/5400+30:1800+30"]

{[%evp 14,87,9,4,10,0,0,0,0,0,14,-10,-5,-7,-6,-5,0,0,-8,0,0,0,0,-12,-8,-22,-6,-12,-3,-8,0,0,0,-2,8,0,0,0,0,0,83,67,70,72,146,142,180,180,242,242,454,330,637,623,560,389,529,525,593,571,756,715,764,757,735,685,740,683,1635,1135,1334,1294,29982,29983,29983,29984]} 1. d4 {[%emt 0:00:30]} Nf6 {[%emt 0:00:21]} 2. Bf4 {[%emt 0:00:06]} g6 {[%emt 0:02:53]} 3. Nc3 {[%emt 0:00:21]} d5 {[%emt 0:01:14]} 4. e3 {[%emt 0:00:08]} c6 {[%emt 0:02:00]} 5. h3 {[%emt 0:00:10]} Bg7 {[%emt 0:01:55]} 6. Nf3 {[%emt 0:00:07]} O-O {[%emt 0:04:38]} 7. Be2 {[%emt 0:00:06]} Nbd7 {[%emt 0:04:05]} 8. O-O {[%emt 0:00:23]} b6 {[%emt 0:05:17]} 9. Ne5 {[%emt 0:01:17]} Bb7 {[%emt 0:06:56]} 10. Bf3 {[%emt 0:04:35]} Nxe5 {[%emt 0:11:15] The position is equal.} 11. Bxe5 {[%emt 0:00:33]} Qc8 {[%emt 0:09:22]} 12. Rc1 {[%emt 0:01:58]} Rd8 {[%emt 0:01:22]} 13. Ne2 {[%emt 0:04:01]} c5 {[%emt 0:04:55]} 14. Qe1 {[%emt 0:05:59]} Nd7 {[%emt 0:10:01]} 15. Bxg7 {[%emt 0:01:13]} Kxg7 {[%emt 0:00:01]} 16. c4 {[%emt 0:08:44]} dxc4 {[%emt 0:02:50]} 17. Bxb7 {[%emt 0:00:31]} Qxb7 {[%emt 0:00:03]} 18. Qc3 {[%emt 0:00:46]} b5 {[%emt 0:05:13]} 19. dxc5+ {[%emt 0:00:16]} Kg8 {[%emt 0:00:24]} 20. b4 {[%emt 0:06:28][%cal Oa2a4] [#]} a5 $1 {[%emt 0:00:18]} 21. Nd4 {[%emt 0:01:37]} Ne5 {[%emt 0:09:49]} 22. Rb1 {[%emt 0:09:52][%cal Bc1b1,Bb1b5,Bb5c5][%mdl 32]} axb4 {[%emt 0:05:38]} 23. Qxb4 {[%emt 0:02:49]} Nc6 {[%emt 0:00:24]} 24. Qxb5 {[%emt 0:07:57]} Qxb5 {[%emt 0:00:36]} 25. Rxb5 {[%emt 0:00:12]} Nxd4 {[%emt 0:00:17]} 26. exd4 {[%emt 0:00:06][%cal Be3d4,Bd4d5][%mdl 32]} Rxa2 $11 {[%emt 0:04:25][%mdl 4096] Endgame. KRR-KRR} (26... Rxd4 $11 {keeps the balance.} 27. c6 Rc8) 27. c6 {[%emt 0:09:54] Black must now prevent c7.} Rc8 {[%emt 0:00:20]} 28. d5 {[%emt 0:02:13] Black is on the road to losing.} Ra6 {[%emt 0:04:08] [#]} (28... e6 $2 29. d6 Rxc6 30. Rb8+ Kg7 31. d7 $18) (28... Kg7 $142) 29. Rfb1 $1 $16 {[%emt 0:01:47]} Raa8 {[%emt 0:03:15] Dodges Rb8} 30. Rc5 {[%emt 0:04:27]} Rc7 {[%emt 0:00:48]} (30... Ra4 {is a better defense.} 31. Kf1 Kf8) 31. Rxc4 $18 {[%emt 0:00:51] Strongly threatening Rb7.} Kg7 $2 {[%emt 0:00:20]} (31... Kf8 {was called for.} 32. Kh2 Ke8) 32. f4 {[%emt 0:01:56] aiming for Rb7.} Ra5 $2 {[%emt 0:00:31]} (32... Kf8 33. Rb7 Rcc8) 33. Rb7 {[%emt 0:02:31]} Rc8 {[%emt 0:00:02]} 34. Rd7 {[%emt 0:02:46]} ({Not} 34. Rxe7 Rxd5 35. c7 h5 $16) 34... Kf6 {[%emt 0:00:38]} 35. Kf2 {[%emt 0:03:11]} Ra6 {[%emt 0:00:19]} 36. g4 {[%emt 0:00:19]} h6 {[%emt 0:00:23]} 37. h4 {[%emt 0:00:09]} g5 {[%emt 0:00:33]} 38. hxg5+ hxg5 {[%emt 0:00:00]} 39. fxg5+ {[%emt 0:08:09][%cal Bf4g5,Bg5g6][%mdl 32]} Ke5 {[%emt 0:00:10]} 40. Rc3 {[%emt 0:02:25]} (40. Rxe7+ Kxd5 41. Rc1 Rcxc6 42. Rd1+ Kc4 43. Rxf7 Rg6 44. Rc7+ Kb3 45. Rb1+ Ka2 $18) 40... e6 {[%emt 0:00:20]} 41. Re3+ {[%emt 0:30:08]} Kf4 {[%emt 0:06:10]} 42. Rxf7+ {[%emt 0:00:00]} ({Less strong is} 42. dxe6 fxe6 43. c7 Rc6 $16) 42... Kxg4 {[%emt 0:00:03]} 43. Rg3+ {[%emt 0:00:00]} Kh5 {[%emt 0:01:09]} 44. g6 {[%emt 0:00:00] Weighted Error Value: White=0.18 (very precise) /Black=0.63.  Mistake:       	---       	Black=5      Inaccurate:     	---       	Black=1      OK:         	White=14    	Black=11     Best:        	White=1     	---        Strong:       	White=1     	---} 1-0

[Event "Serbian League 2024"]
[Site "Bajina Basta"]
[Date "2024.10.02"]
[Round "6.17"]
[White "Alimpic, Aleksa"]
[Black "Stankovic, Boris"]
[Result "1-0"]
[ECO "D00"]
[WhiteElo "2253"]
[BlackElo "2290"]
[Annotator "RC"]
[PlyCount "81"]
[EventDate "2024.09.26"]
[EventType "team-tourn"]
[EventCountry "SRB"]
[SourceTitle "playchess.com"]
[Source "ChessBase"]
[SourceQuality "1"]
[TimeControl "40/5400+30:1800+30"]

1. d4 {[%emt 0:00:01]} Nf6 {[%emt 0:04:41]} 2. Nf3 {[%emt 0:00:07]} g6 {[%emt 0:00:09]} 3. Nc3 {[%emt 0:00:16]} d5 {[%emt 0:00:20]} 4. Bf4 {[%emt 0:00:10]} Bg7 {[%emt 0:00:46]} 5. Nb5 {[%emt 0:00:08]} Na6 {[%emt 0:00:16]} 6. e3 {[%emt 0:00:14]} O-O {[%emt 0:00:14]} 7. h3 {[%emt 0:00:05]} Ne4 {[%emt 0:16:56]} 8. Nd2 {[%emt 0:01:01]} Nd6 {[%emt 0:08:17]} 9. Nxd6 {[%emt 0:07:28]} cxd6 {[%emt 0:00:13]} 10. c3 {[%emt 0:01:08]} e5 {[%emt 0:04:45]} 11. Bh2 {[%emt 1:25:22]} Nc7 {[%emt 0:05:08]} 12. a4 {[%emt 0:00:00]} Qe7 {[%emt 0:03:02]} 13. Be2 {[%emt 0:00:00]} Qg5 {[%emt 0:09:28]} 14. Bg3 {[%emt 0:00:00]} f5 {[%emt 0:03:01]} 15. O-O {[%emt 0:00:00]} Qe7 {[%emt 0:03:10]} 16. Re1 {[%emt 0:00:00]} g5 {[%emt 0:01:27]} 17. Bh2 {[%emt 0:00:00]} Kh8 {[%emt 0:03:23]} 18. Rc1 {[%emt 0:00:00]} f4 {[%emt 0:05:15]} 19. Bg4 {[%emt 0:00:00]} Qf7 {[%emt 0:04:24]} 20. exf4 {[%emt 0:00:00]} gxf4 {[%emt 0:00:37]} 21. dxe5 {[%emt 0:00:00]} dxe5 {[%emt 0:00:15]} 22. c4 {[%emt 0:00:00]} e4 {[%emt 0:06:20]} 23. cxd5 {[%emt 0:00:00]} e3 {[%emt 0:00:14]} 24. Ne4 {[%emt 0:00:00]} Bxg4 {[%emt 0:01:40]} 25. Qxg4 {[%emt 0:00:00]} Nxd5 {[%emt 0:00:49]} 26. Kh1 {[%emt 0:00:00]} Qg6 {[%emt 0:02:29]} 27. Qxg6 {[%emt 0:00:00]} hxg6 {[%emt 0:00:19]} 28. fxe3 {[%emt 0:00:00]} fxe3 {[%emt 0:00:37]} 29. Rcd1 {[%emt 0:00:48]} Nb6 {[%emt 0:06:49]} 30. b3 {[%emt 0:02:22]} Rae8 {[%emt 0:03:52]} 31. Rxe3 {[%emt 0:01:10]} Re6 {[%emt 0:00:37]} 32. Rde1 {[%emt 0:00:22]} Nd7 {[%emt 0:03:08]} 33. Bg1 {[%emt 0:01:11]} Rfe8 {[%emt 0:01:30]} 34. Nd6 {[%emt 0:01:01]} Rxe3 {[%emt 0:00:04]} 35. Rxe3 {[%emt 0:00:07]} Rf8 {[%emt 0:00:50]} 36. Rf3 {[%emt 0:00:14]} b6 {[%emt 0:01:40]} 37. Rxf8+ {[%emt 0:00:48]} Bxf8 {[%emt 0:00:29]} 38. Nc8 {[%emt 0:00:23]} Nc5 {[%emt 0:00:40]} 39. Bxc5 {[%emt 0:01:44]} Bxc5 {[%emt 0:00:01]} 40. Nxa7 {[%emt 0:00:06]} Kg7 {[%emt 0:00:14]} 41. Nc6 {[%emt 0:30:20]} 1-0